fUSD/lending_fUSD_20240301
["ID","MTS","AMOUNT","RATE_DAILY","PERIOD"]
[316048211,1709337032400,-1412.71448902,0.00019785,2]
[316048212,1709337032409,-155.0,0.00019787,2]
[316048213,1709337032418,-1871.45,0.00019788,2]
[316048214,1709337032427,-500.0,0.00019829,2]
[316048215,1709337032436,-857.66,0.00019847,2]
[316048216,1709337032445,-500.0,0.00019867,2]
[316048217,1709337032455,-223.3,0.00019873,2]
[316048218,1709337032464,-434.33,0.00019886,2]
[316048219,1709337032473,-517.17709389,0.00019888,2]
[316048220,1709337032482,-300.0,0.00019898,2]
[316048221,1709337032490,-500.0,0.00019902,2]
[316048222,1709337032500,-1852.42,0.00019917,2]
[316048223,1709337032509,-250.0,0.00019917,2]
[316048224,1709337032519,-161.74,0.00019961,2]
[316048225,1709337032528,-3878.88501179,0.00019964,2]
[316048226,1709337032538,-24764.07,0.00019966,2]
[316048227,1709337032550,-6712.62,0.00019966,2]
[316048228,1709337032559,-150.99,0.00019966,2]
[316048229,1709337032569,-8260.91,0.00019966,2]
[316048231,1709337032578,-150.56,0.00019987,2]
[316048233,1709337032588,-2550.0,0.0002,3]
[316048235,1709337032597,-163.58898799,0.0002,7]
[316048237,1709337032606,-565.67,0.00020024,2]
[316048239,1709337032615,-339.0,0.0002006,2]
[316048241,1709337032624,-161.74,0.00020065,2]
[316048243,1709337032633,-183.01,0.00020136,2]
[316048245,1709337032643,-150.56,0.00020141,2]
[316048247,1709337032651,-161.74,0.00020169,2]
[316048249,1709337032660,-521.09,0.0002024,2]
[316048251,1709337032670,-161.74,0.00020273,2]
[316048253,1709337032679,-150.56,0.00020294,2]
[316048255,1709337032688,-161.74,0.00020377,2]
[316048257,1709337032698,-150.56,0.00020448,2]
[316048259,1709337032706,-161.74,0.00020481,2]
[316048261,1709337032715,-161.74,0.00020585,2]
[316048263,1709337032724,-150.56,0.00020602,2]
[316048265,1709337032733,-339.0,0.0002064,2]
[316048267,1709337032743,-161.74,0.00020689,2]
[316048269,1709337032752,-2779.64,0.000207,2]
[316048271,1709337032761,-228.98,0.000207,2]
[316048273,1709337032771,-179.57,0.000207,2]
[316048275,1709337032780,-23900.0,0.000207,2]
[316048277,1709337032789,-150.56,0.00020756,2]
[316048279,1709337032798,-161.74,0.00020793,2]
[316048281,1709337032807,-161.74,0.00020897,2]
[316048283,1709337032816,-150.56,0.00020909,2]
[316048285,1709337032825,-161.74,0.00021001,2]
[316048287,1709337032834,-500.0,0.0002103,2]
[316048289,1709337032843,-259.9,0.0002103,2]
[316048291,1709337032853,-178.0,0.0002104,2]
[316048293,1709337032862,-3786.0,0.00021062,2]
[316048295,1709337032871,-150.56,0.00021063,2]
[316048297,1709337032881,-3717.05,0.00021096,2]
[316048299,1709337032890,-179.18,0.00021096,2]
[316048301,1709337032899,-203.0,0.00021111,4]
[316048303,1709337032908,-514.25,0.00021167,2]
[316048305,1709337032917,-151.34,0.00021195,2]
[316048307,1709337032926,-150.56,0.00021217,2]
[316048309,1709337032935,-339.0,0.0002123,2]
[316048311,1709337032945,-179.44,0.00021249,2]
[316048313,1709337032954,-151.34,0.00021358,2]
[316048315,1709337032962,-1904.5,0.0002137,2]
[316048317,1709337032971,-150.56,0.00021371,2]
[316048319,1709337032980,-31577.03,0.00021378,3]
[316048321,1709337032989,-23937.06,0.00021378,3]
[316048323,1709337032998,-3107.15,0.00021378,3]
[316048325,1709337033007,-93960.62,0.00021378,3]
[316048327,1709337033017,-172.17,0.00021475,2]
[316048329,1709337033026,-300.0,0.00021478,2]
[316048331,1709337033035,-150.0,0.00021478,2]
[316048333,1709337033044,-410.63,0.00021478,2]
[316048335,1709337033053,-151.34,0.00021521,2]
[316048337,1709337033062,-150.56,0.00021524,2]
[316048339,1709337033071,-355.93,0.00021588,2]
[316048341,1709337033080,-1305.35412645,0.00021603,2]
[316048343,1709337033090,-764.72,0.00021678,2]
[316048345,1709337033099,-150.56,0.00021678,2]
[316048347,1709337033108,-151.34,0.00021684,2]
[316048348,1709337033117,-354.2662,0.00021727,2]
[316048349,1709337033126,-1305.35412645,0.00021751,2]
[316048350,1709337033135,-339.0,0.0002181,2]
[316048351,1709337033143,-2519.0403,0.00021817,2]
[316048352,1709337033152,-183.10475446,0.00021817,2]
[316048353,1709337033161,-52924.26,0.00021822,3]
[316048354,1709337033170,-61539.3,0.00021822,3]
[316048355,1709337033179,-533.79967334,0.00021825,2]
[316048356,1709337033188,-234.03590935,0.00021825,2]
[316048357,1709337033197,-169.77983091,0.00021825,2]
[316048358,1709337033206,-193.02001066,0.00021825,2]
[316048359,1709337033214,-196.39555808,0.00021825,2]
[316048360,1709337033223,-5000.0,0.00021826,2]
[316048361,1709337033232,-205.76133976,0.00021827,2]
[316048362,1709337033241,-177.14176877,0.00021827,2]
[316048363,1709337033250,-150.56,0.00021832,2]
[316048364,1709337033259,-247.17345217,0.00021836,2]
[316048365,1709337033269,-151.34,0.00021847,2]
[316048366,1709337033278,-200.0,0.00021887,2]
[316048367,1709337033287,-974.0,0.000219,2]
[316048368,1709337033296,-5500.0,0.000219,2]
[316048369,1709337033305,-6000.0,0.000219,2]
[316048370,1709337033314,-740.0,0.000219,2]
[316048371,1709337033323,-153.32,0.00021907,2]
[316048372,1709337033332,-247.17345217,0.00021914,2]
[316048373,1709337033342,-1000.0,0.00021916,2]
[316048374,1709337033354,-188.62031948,0.00021916,2]
[316048375,1709337033363,-368.42473948,0.00021917,2]
[316048376,1709337033372,-473.06205134,0.00021917,2]
[316048377,1709337033382,-500.0,0.00021917,2]
[316048378,1709337033391,-514.31858526,0.00021917,2]
[316048379,1709337033400,-500.0,0.00021917,2]
[316048380,1709337033409,-500.0,0.00021917,2]
[316048381,1709337033418,-500.0,0.00021917,2]
[316048382,1709337033428,-500.0,0.00021917,2]
[316048383,1709337033437,-500.0,0.00021917,2]
[316048384,1709337033446,-506.73496155,0.00021917,2]
[316048385,1709337033456,-500.0,0.00021917,2]
[316048386,1709337033465,-500.0,0.00021917,2]
[316048387,1709337033475,-480.0,0.00021917,2]
[316048388,1709337033484,-500.0,0.00021917,2]
[316048389,1709337033494,-500.0,0.00021917,2]
[316048390,1709337033505,-360.30269398,0.00021917,2]
[316048391,1709337033514,-500.0,0.00021917,2]
[316048392,1709337033524,-500.0,0.00021917,2]
[316048393,1709337033535,-500.0,0.00021917,2]
[316048394,1709337033548,-559.33,0.00021917,2]
[316048395,1709337033557,-500.0,0.00021917,2]
[316048396,1709337033567,-500.0,0.00021917,2]
[316048397,1709337033577,-500.0,0.00021917,2]
[316048398,1709337033586,-500.0,0.00021917,2]
[316048399,1709337033595,-500.0,0.00021917,2]
[316048400,1709337033604,-500.0,0.00021917,2]
[316048401,1709337033613,-500.0,0.00021917,2]
[316048402,1709337033624,-500.0,0.00021917,2]
[316048403,1709337033633,-500.0,0.00021917,2]
[316048404,1709337033642,-500.0,0.00021917,2]
[316048405,1709337033651,-500.0,0.00021917,2]
[316048406,1709337033660,-162.94905698,0.00021917,2]
[316048407,1709337033669,-500.0,0.00021917,2]
[316048408,1709337033678,-500.99274178,0.00021917,2]
[316048409,1709337033687,-500.0,0.00021917,2]
[316048410,1709337033697,-577.40488449,0.00021917,2]
[316048411,1709337033707,-1538.34,0.00021917,2]
[316048412,1709337033716,-500.0,0.00021917,2]
[316048413,1709337033726,-500.0,0.00021917,2]
[316048414,1709337033735,-500.0,0.00021917,2]
[316048415,1709337033745,-301.04302241,0.00021917,2]
[316048416,1709337033754,-500.0,0.00021917,2]
[316048417,1709337033763,-500.0,0.00021917,2]
[316048418,1709337033773,-500.0,0.00021917,2]
[316048419,1709337033782,-607.76,0.00021917,2]
[316048420,1709337033791,-151.26525131,0.00021917,2]
[316048421,1709337033800,-502.37197252,0.00021917,2]
[316048422,1709337033809,-500.0,0.00021917,2]
[316048423,1709337033818,-500.0,0.00021917,2]
[316048424,1709337033827,-500.0,0.00021917,2]
[316048425,1709337033837,-355.5383982,0.00021917,2]
[316048426,1709337033846,-150.8034886,0.00021917,2]
[316048427,1709337033855,-150.7884188,0.00021917,2]
[316048428,1709337033864,-203.52812275,0.00021917,2]
[316048429,1709337033873,-300.25152393,0.00021917,2]
[316048430,1709337033882,-500.1720569,0.00021917,2]
[316048431,1709337033891,-994.43,0.00021917,2]
[316048432,1709337033900,-218.36884618,0.00021917,2]
[316048433,1709337033910,-151.7969976,0.00021917,2]
[316048434,1709337033918,-873.61,0.00021917,2]
[316048435,1709337033928,-202.15201818,0.00021917,2]
[316048436,1709337033937,-156.2412146,0.00021917,2]
[316048437,1709337033946,-500.0,0.00021917,2]
[316048438,1709337033955,-310.04178361,0.00021917,2]
[316048439,1709337033964,-155.85378652,0.00021917,2]
[316048440,1709337033973,-500.0,0.00021917,2]
[316048441,1709337033982,-155.89042156,0.00021917,2]
[316048442,1709337033991,-500.0,0.00021917,2]
[316048443,1709337034000,-637.4,0.00021917,2]
[316048444,1709337034009,-156.65894666,0.00021917,2]
[316048445,1709337034020,-1092.26,0.00021917,2]
[316048446,1709337034028,-500.0,0.00021917,2]
[316048447,1709337034037,-738.0,0.00021917,2]
[316048448,1709337034046,-500.0,0.00021917,2]
[316048449,1709337034055,-818.95,0.00021917,2]
[316048450,1709337034064,-500.0,0.00021917,2]
[316048451,1709337034074,-500.0,0.00021917,2]
[316048452,1709337034083,-619.11,0.00021917,2]
[316048453,1709337034091,-621.46,0.00021917,2]
[316048454,1709337034101,-500.0,0.00021917,2]
[316048455,1709337034109,-500.0,0.00021917,2]
[316048456,1709337034118,-610.34,0.00021917,2]
[316048457,1709337034127,-500.0,0.00021917,2]
[316048458,1709337034136,-500.0,0.00021917,2]
[316048459,1709337034145,-501.22430086,0.00021917,2]
[316048460,1709337034154,-806.67,0.00021917,2]
[316048461,1709337034163,-564.56,0.00021917,2]
[316048462,1709337034172,-562.82,0.00021917,2]
[316048463,1709337034181,-500.0,0.00021917,2]
[316048464,1709337034190,-500.0,0.00021917,2]
[316048465,1709337034200,-500.0,0.00021917,2]
[316048466,1709337034210,-501.01563993,0.00021917,2]
[316048467,1709337034219,-500.0,0.00021917,2]
[316048468,1709337034228,-505.43382367,0.00021917,2]
[316048469,1709337034237,-1036.47,0.00021917,2]
[316048470,1709337034248,-517.46,0.00021917,2]
[316048471,1709337034257,-185.55462084,0.00021917,2]
[316048472,1709337034266,-1128.86,0.00021917,2]
[316048473,1709337034275,-500.08722093,0.00021917,2]
[316048474,1709337034284,-708.15,0.00021917,2]
[316048475,1709337034294,-500.0,0.00021917,2]
[316048476,1709337034303,-500.0,0.00021917,2]
[316048477,1709337034312,-500.0,0.00021917,2]
[316048478,1709337034321,-500.0,0.00021917,2]
[316048479,1709337034330,-500.0,0.00021917,2]
[316048480,1709337034339,-508.1,0.00021917,2]
[316048481,1709337034349,-500.0,0.00021917,2]
[316048482,1709337034358,-500.0,0.00021917,2]
[316048483,1709337034368,-916.16,0.00021917,2]
[316048484,1709337034377,-500.0,0.00021917,2]
[316048485,1709337034386,-500.0,0.00021917,2]
[316048486,1709337034396,-500.0,0.00021917,2]
[316048487,1709337034405,-500.0,0.00021917,2]
[316048488,1709337034414,-500.0,0.00021917,2]
[316048489,1709337034423,-500.0,0.00021917,2]
[316048490,1709337034433,-506.01970007,0.00021917,2]
[316048491,1709337034442,-500.0,0.00021917,2]
[316048492,1709337034451,-500.0,0.00021917,2]
[316048493,1709337034460,-671.16,0.00021917,2]
[316048494,1709337034469,-500.0,0.00021917,2]
[316048495,1709337034478,-500.0,0.00021917,2]
[316048496,1709337034487,-500.0,0.00021917,2]
[316048497,1709337034496,-500.0,0.00021917,2]
[316048498,1709337034506,-503.33157672,0.00021917,2]
[316048499,1709337034517,-500.0,0.00021917,2]
[316048500,1709337034525,-500.0,0.00021917,2]
[316048501,1709337034534,-501.83044392,0.00021917,2]
[316048502,1709337034547,-500.0,0.00021917,2]
[316048503,1709337034557,-500.0,0.00021917,2]
[316048504,1709337034566,-500.0,0.00021917,2]
[316048505,1709337034575,-500.0,0.00021917,2]
[316048506,1709337034828,-500.0,0.00021917,2]
[316048507,1709337034838,-500.0,0.00021917,2]
[316048508,1709337034848,-500.0,0.00021917,2]
[316048509,1709337034857,-500.0,0.00021917,2]
[316048510,1709337034866,-500.0,0.00021917,2]
[316048511,1709337034875,-500.0,0.00021917,2]
[316048512,1709337034885,-533.97954966,0.00021917,2]
[316048513,1709337034894,-506.03293361,0.00021917,2]
[316048514,1709337034903,-500.0,0.00021917,2]
[316048515,1709337034912,-500.0,0.00021917,2]
[316048516,1709337034921,-500.0,0.00021917,2]
[316048517,1709337034930,-500.0,0.00021917,2]
[316048518,1709337034939,-500.0,0.00021917,2]
[316048519,1709337034948,-541.40675257,0.00021917,2]
[316048520,1709337034957,-500.0,0.00021917,2]
[316048521,1709337034966,-500.0,0.00021917,2]
[316048522,1709337034975,-500.0,0.00021917,2]
[316048523,1709337034984,-500.0,0.00021917,2]
[316048524,1709337034993,-500.0,0.00021917,2]
[316048525,1709337035002,-500.0,0.00021917,2]
[316048526,1709337035011,-500.0,0.00021917,2]
[316048527,1709337035020,-227.52005761,0.00021917,2]
[316048528,1709337035029,-500.0,0.00021917,2]
[316048529,1709337035038,-500.0,0.00021917,2]
[316048530,1709337035048,-500.0,0.00021917,2]
[316048531,1709337035057,-500.0,0.00021917,2]
[316048532,1709337035066,-500.0,0.00021917,2]
[316048533,1709337035076,-500.0,0.00021917,2]
[316048534,1709337035085,-500.0,0.00021917,2]
[316048535,1709337035094,-8789.54,0.00021917,2]
[316048536,1709337035103,-500.0,0.00021917,2]
[316048537,1709337035112,-500.0,0.00021917,2]
[316048538,1709337035121,-500.0,0.00021917,2]
[316048539,1709337035130,-500.0,0.00021917,2]
[316048540,1709337035140,-2151.18,0.00021917,2]
[316048541,1709337035149,-500.0,0.00021917,2]
[316048542,1709337035159,-510.26149267,0.00021917,2]
[316048543,1709337035169,-500.0,0.00021917,2]
[316048544,1709337035178,-500.0,0.00021917,2]
[316048545,1709337035187,-500.0,0.00021917,2]
[316048546,1709337035196,-508.79556699,0.00021917,2]
[316048547,1709337035206,-500.0,0.00021917,2]
[316048548,1709337035215,-937.4,0.00021917,2]
[316048549,1709337035224,-507.62400836,0.00021917,2]
[316048550,1709337035234,-500.0,0.00021917,2]
[316048551,1709337035243,-500.0,0.00021917,2]
[316048552,1709337035252,-500.0,0.00021917,2]
[316048553,1709337035262,-500.0,0.00021917,2]
[316048554,1709337035271,-500.0,0.00021917,2]
[316048555,1709337035280,-1287.86,0.00021917,2]
[316048556,1709337035289,-506.59401219,0.00021917,2]
[316048557,1709337035299,-500.0,0.00021917,2]
[316048558,1709337035308,-500.0,0.00021917,2]
[316048559,1709337035318,-500.0,0.00021917,2]
[316048560,1709337035326,-500.0,0.00021917,2]
[316048561,1709337035336,-500.0,0.00021917,2]
[316048562,1709337035346,-500.0,0.00021917,2]
[316048563,1709337035356,-500.0,0.00021917,2]
[316048564,1709337035365,-4125.6,0.00021917,2]
[316048565,1709337035375,-500.0,0.00021917,2]
[316048566,1709337035384,-500.0,0.00021917,2]
[316048567,1709337035393,-500.0,0.00021917,2]
[316048568,1709337035402,-500.0,0.00021917,2]
[316048569,1709337035412,-500.0,0.00021917,2]
[316048570,1709337035421,-579.21,0.00021917,2]
[316048571,1709337035430,-25953.58,0.00021917,2]
[316048572,1709337035439,-500.0,0.00021917,2]
[316048573,1709337035449,-509.61399155,0.00021917,2]
[316048574,1709337035458,-500.0,0.00021917,2]
[316048575,1709337035467,-500.0,0.00021917,2]
[316048576,1709337035476,-500.0,0.00021917,2]
[316048577,1709337035486,-500.0,0.00021917,2]
[316048578,1709337035496,-500.0,0.00021917,2]
[316048579,1709337035505,-500.0,0.00021917,2]
[316048580,1709337035514,-500.0,0.00021917,2]
[316048581,1709337035524,-512.66,0.00021917,2]
[316048582,1709337035533,-612.67,0.00021917,2]
[316048583,1709337035544,-519.47868903,0.00021917,2]
[316048584,1709337035554,-500.0,0.00021917,2]
[316048585,1709337035563,-500.0,0.00021917,2]
[316048586,1709337035573,-2982.35,0.00021917,2]
[316048587,1709337035583,-500.0,0.00021917,2]
[316048588,1709337035592,-500.0,0.00021917,2]
[316048589,1709337035602,-500.0,0.00021917,2]
[316048590,1709337035611,-500.0,0.00021917,2]
[316048591,1709337035621,-500.0,0.00021917,2]
[316048592,1709337035631,-500.0,0.00021917,2]
[316048593,1709337035640,-500.0,0.00021917,2]
[316048594,1709337035649,-500.0,0.00021917,2]
[316048595,1709337035659,-1722.49,0.00021917,2]
[316048596,1709337035668,-500.0,0.00021917,2]
[316048597,1709337035678,-500.0,0.00021917,2]
[316048598,1709337035687,-500.0,0.00021917,2]
[316048599,1709337035697,-2803.17,0.00021917,2]
[316048600,1709337035706,-500.0,0.00021917,2]
[316048601,1709337035715,-500.0,0.00021917,2]
[316048602,1709337035725,-500.0,0.00021917,2]
[316048603,1709337035734,-519.49498259,0.00021917,2]
[316048604,1709337035743,-500.0,0.00021917,2]
[316048605,1709337035752,-1250.14,0.00021917,2]
[316048606,1709337035762,-585.76523238,0.00021917,2]
[316048607,1709337035771,-1068.13,0.00021917,2]
[316048608,1709337035780,-500.0,0.00021917,2]
[316048609,1709337035789,-506.77488416,0.00021917,2]
[316048610,1709337035799,-2370.26,0.00021917,2]
[316048611,1709337035808,-500.0,0.00021917,2]
[316048612,1709337035818,-500.0,0.00021917,2]
[316048613,1709337035827,-681.81,0.00021917,2]
[316048614,1709337035836,-500.0,0.00021917,2]
[316048615,1709337035846,-500.0,0.00021917,2]
[316048616,1709337035856,-500.0,0.00021917,2]
[316048617,1709337035866,-500.0,0.00021917,2]
[316048618,1709337035876,-500.0,0.00021917,2]
[316048619,1709337035886,-1225.88,0.00021917,2]
[316048620,1709337035896,-500.0,0.00021917,2]
[316048621,1709337035906,-500.0,0.00021917,2]
[316048622,1709337035915,-8548.5,0.00021917,2]
[316048623,1709337035924,-535.42721467,0.00021917,2]
[316048624,1709337035934,-500.0,0.00021917,2]
[316048625,1709337035943,-500.0,0.00021917,2]
[316048626,1709337035953,-511.8056137,0.00021917,2]
[316048627,1709337035962,-500.0,0.00021917,2]
[316048628,1709337035971,-500.0,0.00021917,2]
[316048629,1709337035980,-336.65499796,0.00021917,2]
[316048630,1709337035989,-500.0,0.00021917,2]
[316048631,1709337035998,-505.56804263,0.00021917,2]
[316048632,1709337036007,-500.0,0.00021917,2]
[316048633,1709337036016,-500.0,0.00021917,2]
[316048634,1709337036025,-500.0,0.00021917,2]
[316048635,1709337036035,-500.0,0.00021917,2]
[316048636,1709337036044,-840.25,0.00021917,2]
[316048637,1709337036053,-4730.53,0.00021917,2]
[316048638,1709337036062,-500.0,0.00021917,2]
[316048639,1709337036071,-500.0,0.00021917,2]
[316048640,1709337036080,-500.0,0.00021917,2]
[316048641,1709337036089,-511.75934048,0.00021917,2]
[316048642,1709337036098,-500.0,0.00021917,2]
[316048643,1709337036107,-538.92,0.00021917,2]
[316048644,1709337036116,-500.0,0.00021917,2]
[316048645,1709337036125,-500.0,0.00021917,2]
[316048646,1709337036134,-500.0,0.00021917,2]
[316048647,1709337036144,-500.0,0.00021917,2]
[316048648,1709337036153,-500.0,0.00021917,2]
[316048649,1709337036162,-1257.32,0.00021917,2]
[316048650,1709337036172,-13756.74,0.00021917,2]
[316048651,1709337036181,-500.0,0.00021917,2]
[316048652,1709337036191,-1083.14,0.00021917,2]
[316048653,1709337036200,-500.0,0.00021917,2]
[316048654,1709337036210,-500.0,0.00021917,2]
[316048655,1709337036219,-500.0,0.00021917,2]
[316048656,1709337036228,-500.0,0.00021917,2]
[316048657,1709337036238,-500.0,0.00021917,2]
[316048658,1709337036247,-500.0,0.00021917,2]
[316048659,1709337036257,-797.47,0.00021917,2]
[316048660,1709337036266,-500.0,0.00021917,2]
[316048661,1709337036276,-1076.02,0.00021917,2]
[316048662,1709337036285,-500.0,0.00021917,2]
[316048663,1709337036295,-571.28,0.00021917,2]
[316048664,1709337036303,-500.0,0.00021917,2]
[316048665,1709337036312,-4315.52,0.00021917,2]
[316048666,1709337036321,-500.0,0.00021917,2]
[316048667,1709337036331,-500.0,0.00021917,2]
[316048668,1709337036340,-500.0,0.00021917,2]
[316048669,1709337036349,-500.0,0.00021917,2]
[316048670,1709337036359,-975.92,0.00021917,2]
[316048671,1709337036369,-500.0,0.00021917,2]
[316048672,1709337036378,-500.0,0.00021917,2]
[316048673,1709337036388,-2359.53,0.00021917,2]
[316048674,1709337036397,-500.0,0.00021917,2]
[316048675,1709337036407,-500.0,0.00021917,2]
[316048676,1709337036417,-528.35,0.00021917,2]
[316048677,1709337036426,-500.0,0.00021917,2]
[316048678,1709337036435,-500.0,0.00021917,2]
[316048679,1709337036444,-500.0,0.00021917,2]
[316048680,1709337036454,-1692.41,0.00021917,2]
[316048681,1709337036463,-500.0,0.00021917,2]
[316048682,1709337036472,-628.09,0.00021917,2]
[316048683,1709337036481,-513.07125077,0.00021917,2]
[316048684,1709337036490,-500.0,0.00021917,2]
[316048685,1709337036500,-842.15,0.00021917,2]
[316048686,1709337036509,-500.0,0.00021917,2]
[316048687,1709337036518,-690.64,0.00021917,2]
[316048688,1709337036527,-1573.42,0.00021917,2]
[316048689,1709337036537,-544.21633157,0.00021917,2]
[316048690,1709337036550,-509.49065257,0.00021917,2]
[316048691,1709337036559,-500.0,0.00021917,2]
[316048692,1709337036569,-768.39,0.00021917,2]
[316048693,1709337036579,-500.0,0.00021917,2]
[316048694,1709337036589,-261.90312119,0.00021917,2]
[316048695,1709337036599,-500.0,0.00021917,2]
[316048696,1709337036608,-500.0,0.00021917,2]
[316048697,1709337036618,-500.0,0.00021917,2]
[316048698,1709337036628,-500.0,0.00021917,2]
[316048699,1709337036637,-500.0,0.00021917,2]
[316048700,1709337036647,-460.68114316,0.00021917,2]
[316048701,1709337036662,-3236.14,0.00021917,2]
[316048702,1709337036679,-500.0,0.00021917,2]
[316048703,1709337036695,-500.0,0.00021917,2]
[316048704,1709337036708,-500.0,0.00021917,2]
[316048705,1709337036723,-1909.73,0.00021917,2]
[316048706,1709337036738,-1805.54,0.00021917,2]
[316048707,1709337036754,-500.0,0.00021917,2]
[316048708,1709337036769,-614.51,0.00021917,2]
[316048709,1709337036780,-1239.12,0.00021917,2]
[316048710,1709337036795,-502.48,0.00021917,2]
[316048711,1709337036809,-500.0,0.00021917,2]
[316048712,1709337036823,-2967.8618803,0.00021917,2]
[316048713,1709337036838,-595.04,0.00021917,2]
[316048714,1709337036849,-500.0,0.00021917,2]
[316048715,1709337036865,-500.0,0.00021917,2]
[316048716,1709337036880,-1626.56,0.00021917,2]
[316048717,1709337036893,-500.0,0.00021917,2]
[316048718,1709337036906,-1481.1,0.00021917,2]
[316048719,1709337036920,-610.98,0.00021917,2]
[316048720,1709337036937,-500.0,0.00021917,2]
[316048721,1709337036952,-500.0,0.00021917,2]
[316048722,1709337036966,-500.0,0.00021917,2]
[316048723,1709337036977,-717.69,0.00021917,2]
[316048724,1709337036989,-2159.55,0.00021917,2]
[316048725,1709337037004,-1332.21,0.00021917,2]
[316048726,1709337037016,-768.07,0.00021917,2]
[316048727,1709337037031,-1231.41,0.00021917,2]
[316048728,1709337037042,-500.0,0.00021917,2]
[316048729,1709337037054,-500.0,0.00021917,2]
[316048730,1709337037066,-500.0,0.00021917,2]
[316048731,1709337037078,-511.9030797,0.00021917,2]
[316048732,1709337037090,-500.0,0.00021917,2]
[316048733,1709337037103,-500.0,0.00021917,2]
[316048734,1709337037114,-500.0,0.00021917,2]
[316048735,1709337037126,-500.0,0.00021917,2]
[316048736,1709337037138,-500.0,0.00021917,2]
[316048737,1709337037149,-980.96,0.00021917,2]
[316048738,1709337037161,-500.0,0.00021917,2]
[316048739,1709337037178,-500.0,0.00021917,2]
[316048740,1709337037190,-500.0,0.00021917,2]
[316048741,1709337037202,-500.0,0.00021917,2]
[316048742,1709337037214,-588.2,0.00021917,2]
[316048743,1709337037226,-1205.54,0.00021917,2]
[316048744,1709337037238,-1007.11,0.00021917,2]
[316048745,1709337037250,-500.0,0.00021917,2]
[316048746,1709337037262,-503.10906157,0.00021917,2]
[316048747,1709337037275,-500.0,0.00021917,2]
[316048748,1709337037287,-500.0,0.00021917,2]
[316048749,1709337037299,-554.15318426,0.00021917,2]
[316048750,1709337037311,-3189.57,0.00021917,2]
[316048751,1709337037323,-500.0,0.00021917,2]
[316048752,1709337037334,-524.77,0.00021917,2]
[316048753,1709337037347,-2479.43,0.00021917,2]
[316048754,1709337037359,-1374.45,0.00021917,2]
[316048755,1709337037371,-524.77,0.00021917,2]
[316048756,1709337037385,-524.77,0.00021917,2]
[316048757,1709337037397,-351.0570277,0.00021917,2]
[316048758,1709337037410,-2318.3,0.00021917,2]
[316048759,1709337037422,-500.0,0.00021917,2]
[316048760,1709337037434,-745.65,0.00021917,2]
[316048761,1709337037446,-500.0,0.00021917,2]
[316048762,1709337037458,-500.0,0.00021917,2]
[316048763,1709337037470,-718.32,0.00021917,2]
[316048764,1709337037483,-2096.43,0.00021917,2]
[316048765,1709337037495,-500.0,0.00021917,2]
[316048766,1709337037508,-5231.01,0.00021917,2]
[316048767,1709337037520,-2562.09,0.00021917,2]
[316048768,1709337037534,-500.0,0.00021917,2]
[316048769,1709337037550,-500.0,0.00021917,2]